bitfinex/quotes_ETHUSD_20251006
["timestamp","ask_amount","ask_price","bid_price","bid_amount"]
[1759727003707,0.002,4521.1,4520.8,2.4]
[1759727004049,0.002,4521.1,4521.0,2.4]
[1759727004191,0.002,4521.1,4520.8,2.513]
[1759727004391,0.1124,4521.0,4520.8,2.4]
[1759727004621,0.5383,4521.0,4520.8,2.4]
[1759727006323,0.4259,4520.9,4520.8,2.4]
[1759727007953,0.1124,4521.0,4520.8,2.4]
[1759727008536,0.1124,4521.0,4520.3,0.001]
[1759727008537,0.4259,4520.9,4520.3,0.001]
[1759727008923,0.4259,4520.9,4520.3,2.401]
[1759727009479,0.002,4521.0,4520.5,2.4]
[1759727009646,0.002,4521.0,4520.7,2.4]
[1759727009818,0.002,4521.0,4520.9,2.4]
[1759727011450,0.002,4521.0,4520.9,2.8744]
[1759727012660,0.002,4521.0,4520.9,2.4]
[1759727018570,0.1124,4521.0,4520.9,2.4]
[1759727018871,0.1124,4521.0,4520.9,2.511]
[1759727019066,0.1124,4521.0,4520.9,2.51]
[1759727019935,0.1124,4521.0,4520.9,4.91]
[1759727020736,0.1124,4521.0,4520.0,2.21234144]
[1759727020737,0.4279,4521.0,4519.6,2.511]
[1759727020941,0.20538853,4520.9,4519.6,2.511]
[1759727021183,0.20538853,4520.9,4519.7,2.4]
[1759727021386,0.4259,4520.8,4519.7,2.4]
[1759727021540,0.20538853,4520.7,4519.7,2.4]
[1759727021742,0.20538853,4520.7,4520.3,2.401]
[1759727021743,0.63128853,4520.7,4520.3,2.401]
[1759727021955,0.002,4521.0,4520.3,2.401]
[1759727021956,0.20538853,4520.6,4520.5,0.001]
[1759727022153,0.63128853,4520.6,4520.5,0.001]
[1759727025392,0.20538853,4520.6,4520.5,0.001]
[1759727025699,0.20538853,4520.9,4520.5,0.001]
[1759727025992,0.20538853,4520.8,4520.5,0.001]
[1759727026196,0.20538853,4520.7,4520.5,0.001]
[1759727026363,0.20538853,4520.6,4520.5,0.001]
[1759727026564,0.002,4521.0,4520.5,0.001]
[1759727026795,0.002,4521.0,4520.5,2.401]
[1759727027093,0.20738853,4521.0,4520.6,0.4727]
[1759727027400,0.20738853,4521.0,4520.5,2.401]
[1759727027401,0.20538853,4520.9,4520.5,2.401]
[1759727027574,0.20538853,4520.8,4520.5,2.401]
[1759727027773,0.002,4521.0,4520.5,2.401]
[1759727027975,0.002,4521.0,4520.5,2.8737]
[1759727029682,0.002,4521.0,4520.5,2.401]
[1759727029871,0.002,4521.0,4520.6,0.4727]
[1759727030070,0.002,4521.0,4520.7,2.51]
[1759727030767,0.002,4521.0,4520.8,2.4]
[1759727031163,0.1104,4520.9,4520.8,2.4]
[1759727031593,0.1104,4520.9,4520.8,2.8727]
[1759727037903,0.1104,4520.9,4520.8,2.4]
[1759727040392,0.1104,4520.9,4520.8,2.8727]
[1759727040685,0.1104,4520.9,4520.8,5.3807]
[1759727041306,0.1104,4520.9,4520.8,4.908]
[1759727041685,0.1104,4520.9,4520.8,5.3807]
[1759727042086,0.1104,4520.9,4520.8,35.3807]
[1759727042819,0.002,4521.0,4520.9,2.4]
[1759727042995,0.002,4521.0,4520.9,32.8656]
[1759727044422,0.002,4521.0,4520.9,35.3726]
[1759727044937,0.002,4521.0,4520.9,49.8726]
[1759727045095,0.002,4521.0,4520.9,52.08454894]
[1759727045598,0.002,4521.0,4520.9,49.8726]
[1759727047031,0.002,4521.0,4520.9,44.3276]
[1759727047702,0.002,4521.0,4520.9,46.53954894]
[1759727048024,0.002,4521.0,4520.9,52.08454894]
[1759727048619,0.002,4521.0,4520.9,49.8726]
[1759727049535,0.002,4521.0,4520.9,45.3356]
[1759727049894,0.002,4521.0,4520.9,49.8726]
[1759727050243,0.002,4521.0,4520.9,42.5986]
[1759727050939,0.002,4521.0,4520.9,49.8726]
[1759727051344,0.002,4521.0,4520.9,43.2116]
[1759727051996,0.002,4521.0,4520.9,49.8726]
[1759727052522,0.002,4521.0,4520.9,47.3656]
[1759727052717,0.002,4521.0,4520.9,49.8716]
[1759727052918,0.1124,4521.0,4520.9,40.6886]
[1759727053118,0.1124,4521.0,4520.9,40.487]
[1759727053324,0.1124,4521.0,4520.9,37.807]
[1759727053531,0.1124,4521.0,4520.9,38.2726]
[1759727054036,0.1124,4521.0,4520.9,48.4746]
[1759727054903,0.1124,4521.0,4520.9,35.1616]
[1759727055112,0.1124,4521.0,4520.9,40.0056]
[1759727055314,0.1124,4521.0,4520.9,29.6196]
[1759727056138,0.1124,4521.0,4520.9,49.8716]
[1759727056547,0.1124,4521.0,4520.9,52.08354894]
[1759727057127,0.1124,4521.0,4520.9,49.57754894]
[1759727057340,0.1124,4521.0,4520.9,49.8706]
[1759727057657,0.1124,4521.0,4520.9,52.08254894]
[1759727058157,0.1124,4521.0,4520.9,49.8706]
[1759727058357,0.1124,4521.0,4520.9,52.08254894]
[1759727059059,0.1124,4521.0,4520.9,49.8706]
[1759727060054,0.1124,4521.0,4520.9,19.405]
[1759727060254,0.1124,4521.0,4520.9,28.936]
[1759727060470,0.1124,4521.0,4520.9,28.67]
[1759727060770,0.1124,4521.0,4520.9,28.344]
[1759727061270,0.1124,4521.0,4520.9,29.591]
[1759727062047,0.1124,4521.0,4520.9,4.905]
[1759727063199,0.1124,4521.0,4520.9,5.3706]
[1759727063554,0.1124,4521.0,4520.9,15.3706]
[1759727063855,0.1124,4521.0,4520.9,14.905]
[1759727064060,0.5383,4521.0,4520.9,2.4]
[1759727064236,0.31824388,4521.0,4520.9,2.4]
[1759727064656,0.1124,4521.0,4520.9,2.4]
[1759727064968,0.31823814,4521.0,4520.9,2.4]
[1759727065345,0.1124,4521.0,4520.9,2.4]
[1759727066555,0.1124,4521.0,4520.9,32.8656]
[1759727067854,0.1124,4521.0,4520.9,47.3656]
[1759727069501,0.1124,4521.0,4520.9,49.57754894]
[1759727070549,0.1124,4521.0,4520.9,19.57754894]
[1759727070847,0.1124,4521.0,4520.9,49.57754894]
[1759727071464,0.1124,4521.0,4520.9,49.82502369]
[1759727071881,0.002,4521.0,4520.9,49.82502369]
[1759727073059,0.002,4521.0,4520.9,49.57754894]
[1759727073457,0.002,4521.0,4520.9,52.08254894]
[1759727073789,0.1124,4521.0,4520.9,40.62794894]
[1759727073992,0.1124,4521.0,4520.9,38.416]
[1759727074690,0.1124,4521.0,4520.9,49.405]
[1759727074995,0.1124,4521.0,4520.9,52.06604894]
[1759727077986,0.002,4521.0,4520.9,52.31352369]
[1759727078993,0.002,4521.0,4520.9,52.06604894]
[1759727084809,0.002,4521.0,4520.9,22.06604894]
[1759727084993,0.002,4521.0,4520.9,52.06604894]
[1759727085726,0.002,4521.0,4520.9,52.69964894]
[1759727085908,0.002,4521.0,4520.9,52.94712369]
[1759727090812,0.002,4521.0,4520.9,54.53370021]
[1759727092896,0.002,4521.0,4520.9,52.94712369]
[1759727093313,0.002,4521.0,4520.9,53.03557455]
[1759727094898,0.002,4521.0,4520.9,23.03557455]
[1759727095130,0.002,4521.0,4520.9,53.03557455]
[1759727100661,0.002,4521.4,4521.3,2.84535325]
[1759727100815,0.002,4521.4,4521.3,37.74935325]
[1759727101018,0.002,4521.4,4521.3,38.30885325]
[1759727101219,0.002,4521.4,4521.3,52.80885325]
[1759727101418,0.002,4521.4,4521.3,52.89729139]
[1759727102347,0.002,4521.4,4521.3,54.47483154]
[1759727102716,0.002,4521.4,4521.3,47.42817917]
[1759727102916,0.002,4521.4,4521.3,52.14393242]
[1759727103949,0.4279,4521.4,4521.3,52.14393242]
[1759727104650,0.002,4521.4,4521.3,52.14393242]
[1759727106048,0.002,4521.4,4521.3,22.14393242]
[1759727106553,0.002,4521.4,4521.3,52.14393242]
[1759727106756,0.002,4521.4,4521.3,53.21363242]
[1759727106919,0.002,4521.4,4521.3,53.32403242]
[1759727107716,0.002,4521.4,4521.3,52.88793242]
[1759727109340,0.002,4521.4,4521.3,53.32403242]
[1759727110574,0.002,4521.4,4521.3,52.88793242]
[1759727111978,0.002,4521.4,4521.3,50.38393242]
[1759727112180,0.002,4521.4,4521.3,52.88793242]
[1759727114780,0.002,4521.4,4521.3,53.32403242]
[1759727114976,0.002,4521.4,4521.3,52.88793242]
[1759727115177,0.002,4521.4,4521.3,54.47483154]
[1759727120293,0.002,4521.4,4521.3,50.38393242]
[1759727120599,0.002,4521.4,4521.3,52.88793242]
[1759727123679,0.002,4521.4,4521.3,53.32403242]
[1759727124010,0.002,4521.4,4521.3,52.88793242]
[1759727124792,0.002,4521.4,4521.3,53.32403242]
[1759727125004,0.002,4521.4,4521.3,52.88793242]
[1759727125610,0.002,4521.4,4521.3,49.63993242]
[1759727125914,0.4279,4521.4,4521.3,52.14393242]
[1759727126915,0.4279,4521.4,4521.3,24.201]
[1759727127082,0.4279,4521.4,4521.3,24.305]
[1759727127416,0.4279,4521.4,4521.3,26.705]
[1759727127707,0.4279,4521.4,4521.3,36.398]
[1759727128713,0.4279,4521.4,4521.3,36.255]
[1759727129015,0.4279,4521.4,4521.3,27.761]
[1759727129715,0.4279,4521.4,4521.3,29.92]
[1759727130010,0.4279,4521.4,4521.3,32.13175325]
[1759727130220,0.4279,4521.4,4521.3,28.37]
[1759727130575,0.4279,4521.4,4521.3,45.181]
[1759727130920,0.4279,4521.4,4521.3,38.124]
[1759727131218,0.4279,4521.4,4521.3,36.045]
[1759727131396,0.4279,4521.4,4521.3,35.42]
[1759727131723,0.4279,4521.4,4521.3,35.788]
[1759727132438,0.4279,4521.4,4521.3,37.99975325]
[1759727132584,0.4279,4521.4,4521.3,51.61575325]
[1759727133229,0.002,4521.4,4521.3,51.61575325]
[1759727133432,0.002,4521.4,4521.3,49.404]
[1759727134313,0.002,4521.4,4521.3,51.61575325]
[1759727135091,0.002,4521.4,4521.3,49.404]
[1759727135583,0.002,4521.4,4521.3,36.212]
[1759727135803,0.002,4521.4,4521.3,35.942]
[1759727136208,0.002,4521.4,4521.3,35.268]
[1759727136408,0.002,4521.4,4521.3,33.776]
[1759727136611,0.4279,4521.4,4521.3,19.404]
[1759727136783,0.002,4521.4,4521.3,46.94075325]
[1759727136983,0.002,4521.4,4521.3,34.045]
[1759727137786,0.002,4521.4,4521.3,47.15875325]
[1759727138189,0.002,4521.4,4521.3,42.797]
[1759727138637,0.002,4521.4,4521.3,45.00875325]
[1759727138974,0.002,4521.4,4521.3,51.61575325]
[1759727139504,0.002,4521.4,4521.3,48.657]
[1759727139699,0.002,4521.4,4521.3,2.4]
[1759727140006,0.002,4521.4,4521.3,4.904]
[1759727140007,0.4279,4521.4,4521.3,4.904]
[1759727146834,0.002,4521.4,4521.3,4.904]
[1759727148419,0.4279,4521.4,4521.3,4.904]
[1759727148627,0.002,4521.4,4521.3,4.904]
[1759727152540,0.002,4521.4,4521.3,35.3724]
[1759727153036,0.002,4521.4,4521.3,37.58415325]
[1759727153712,0.002,4521.4,4521.3,34.904]
[1759727153915,0.002,4521.4,4521.3,37.11575325]
[1759727154248,0.002,4521.4,4521.3,35.3724]
[1759727155253,0.002,4521.4,4521.3,37.58415325]
[1759727156111,0.002,4521.4,4521.3,37.11575325]
[1759727156340,0.002,4521.4,4521.3,37.58415325]
[1759727156642,0.002,4521.4,4521.3,52.08415325]
[1759727156942,0.002,4521.4,4521.3,19.404]
[1759727157351,0.002,4521.4,4521.3,21.61575325]
[1759727157555,0.002,4521.4,4521.3,7.11575325]
[1759727158950,0.002,4521.4,4521.3,4.904]
[1759727164470,0.002,4521.4,4521.3,7.11575325]
[1759727164656,0.002,4521.4,4521.3,4.904]
[1759727165974,0.002,4521.4,4521.3,7.11575325]
[1759727166537,0.002,4521.4,4521.3,4.904]
[1759727166742,0.002,4521.4,4521.3,7.11575325]
[1759727166959,0.002,4521.4,4521.3,5.3515]
[1759727167648,0.002,4521.4,4521.3,7.56325325]
[1759727168074,0.002,4521.4,4521.3,4.904]
[1759727169075,0.002,4521.4,4521.3,2.4]
[1759727169392,0.4279,4521.4,4521.1,0.001]
[1759727169681,0.1104,4521.2,4521.1,0.001]
[1759727169882,0.31626706,4521.2,4521.1,0.001]
[1759727170260,0.74216706,4521.2,4521.1,0.001]
[1759727171982,2.95396923,4521.2,4521.1,0.001]
[1759727173875,5.45796923,4521.2,4521.1,0.001]
[1759727174079,6.23418697,4521.2,4521.1,0.001]
[1759727176099,4.0223848,4521.2,4521.1,0.001]
[1759727176405,5.45796923,4521.2,4521.1,0.001]
[1759727177491,0.74216706,4521.2,4521.1,0.001]
[1759727177691,3.24616706,4521.2,4521.1,0.001]
[1759727178405,5.45796923,4521.2,4521.1,0.001]
[1759727178603,2.95396923,4521.2,4521.1,0.001]
[1759727178785,5.45796923,4521.2,4521.1,0.001]
[1759727179693,3.24616706,4521.2,4521.1,0.001]
[1759727180195,5.45796923,4521.2,4521.1,0.001]
[1759727180508,6.2341833,4521.2,4521.1,0.001]
[1759727180809,4.02238113,4521.2,4521.1,0.001]
[1759727183407,4.02141995,4521.2,4521.1,0.001]
[1759727186008,1.09151995,4521.2,4521.1,0.001]
[1759727186212,2.81930588,4521.2,4521.1,0.001]
[1759727186381,2.81930588,4521.2,4521.1,0.4485]
[1759727186712,2.81930588,4521.2,4521.1,0.001]
[1759727192246,0.31530588,4521.2,4521.1,0.001]
[1759727192547,0.31530588,4521.2,4521.1,0.4485]
[1759727192548,2.81930588,4521.2,4521.1,0.4485]
[1759727193117,0.31530588,4521.2,4521.1,0.4485]
[1759727193612,0.1104,4521.2,4521.1,0.4485]
[1759727193921,2.6144,4521.2,4521.1,0.4485]
[1759727194237,2.81930588,4521.2,4521.1,0.4485]
[1759727194450,2.81930588,4521.2,4521.1,0.001]
[1759727194650,3.32480244,4521.2,4521.1,0.001]
[1759727203539,3.75070244,4521.2,4521.1,0.001]
[1759727203738,3.32480244,4521.2,4521.1,0.001]
[1759727208853,4.55480244,4521.2,4521.1,0.001]
[1759727209940,1.54730588,4521.2,4521.1,0.468]
[1759727210476,2.77730588,4521.2,4521.1,0.468]
[1759727210631,2.77730588,4521.2,4521.1,0.001]
[1759727211733,4.00730588,4521.2,4521.1,0.001]
[1759727212350,6.51130588,4521.2,4521.1,0.001]
[1759727213154,7.74130588,4521.2,4521.1,0.001]
[1759727213873,7.74130588,4521.2,4521.1,0.468]
[1759727214563,8.97130588,4521.2,4521.1,0.468]
[1759727214934,6.46730588,4521.2,4521.1,0.468]
[1759727215879,7.69730588,4521.2,4521.1,0.468]
[1759727217149,8.92730588,4521.2,4521.1,0.468]
[1759727217679,8.92730588,4521.2,4521.1,0.001]
[1759727218086,8.92730588,4521.2,4521.1,0.468]
[1759727218384,10.07083647,4521.2,4521.1,0.001]
[1759727218684,10.15730588,4521.2,4521.1,0.001]
[1759727219255,10.15730588,4521.2,4521.1,0.468]
[1759727219953,11.38730588,4521.2,4521.1,0.468]
[1759727220265,13.89030588,4521.2,4521.1,0.468]
[1759727220466,13.89030588,4521.2,4521.1,0.001]
[1759727220884,16.28344678,4521.2,4521.1,0.001]
[1759727221114,16.28344678,4521.2,4521.1,0.468]
[1759727221379,17.51344678,4521.2,4521.1,0.001]
[1759727221959,17.51344678,4521.2,4521.1,0.468]
[1759727223046,18.74344678,4521.2,4521.1,0.468]
[1759727223571,16.24044678,4521.2,4521.1,0.468]
[1759727223770,18.74344678,4521.2,4521.1,0.468]
[1759727224384,19.97344678,4521.2,4521.1,0.468]
[1759727224582,15.07044678,4521.2,4521.1,0.468]
[1759727224788,14.8655409,4521.2,4521.1,2.67985109]
[1759727224985,14.8655409,4521.2,4521.1,0.468]
[1759727225753,16.0955409,4521.2,4521.1,0.468]
[1759727226574,16.0955409,4521.2,4521.1,0.4357]
[1759727227059,17.3255409,4521.2,4521.1,0.4357]
[1759727228375,18.5555409,4521.2,4521.1,0.4357]
[1759727229859,19.7855409,4521.2,4521.1,0.4357]
[1759727231061,21.0155409,4521.2,4521.1,0.4357]
[1759727232377,22.2455409,4521.2,4521.1,0.4357]
[1759727233909,23.4755409,4521.2,4521.1,0.4357]
[1759727235408,24.7055409,4521.2,4521.1,0.4357]
[1759727235602,24.7055409,4521.2,4521.1,2.64755109]
[1759727236679,25.9355409,4521.2,4521.1,2.64755109]
[1759727238622,27.1655409,4521.2,4521.1,2.64755109]
[1759727240414,28.3955409,4521.2,4521.1,2.64755109]
[1759727241695,29.6255409,4521.2,4521.1,2.64755109]
[1759727242324,29.6255409,4521.2,4521.1,0.001]
[1759727242828,29.6255409,4521.2,4521.1,2.21285109]
[1759727243026,30.8555409,4521.2,4521.1,2.21285109]
[1759727244501,32.0855409,4521.2,4521.1,2.21285109]
[1759727244823,32.0855409,4521.2,4521.1,2.64755109]
[1759727245927,33.3155409,4521.2,4521.1,2.64755109]
[1759727246223,33.3155409,4521.2,4521.1,0.4357]
[1759727246425,33.3155409,4521.2,4521.1,0.001]
[1759727247324,34.5455409,4521.2,4521.1,0.001]
[1759727248516,35.7755409,4521.2,4521.1,2.64755109]
[1759727249931,37.0055409,4521.2,4521.1,2.64755109]
[1759727250730,37.0055409,4521.2,4521.1,0.4357]
[1759727251103,37.0055409,4521.2,4521.1,0.001]
[1759727251304,38.2355409,4521.2,4521.1,0.001]
[1759727252929,39.4655409,4521.2,4521.1,0.001]
[1759727254111,40.90132599,4521.2,4521.1,0.001]
[1759727254734,45.9977178,4521.2,4521.1,0.001]
[1759727255033,48.68354339,4521.2,4521.1,0.001]
[1759727255326,48.20951997,4521.2,4521.1,0.001]
[1759727255529,49.43951997,4521.2,4521.1,0.001]
[1759727256101,49.52802445,4521.2,4521.1,0.001]
[1759727257031,51.39162445,4521.2,4521.1,0.001]
[1759727257610,2.21194894,4520.9,4520.8,0.001]
[1759727257833,8.23020293,4520.9,4520.8,0.001]
[1759727258003,9.28970293,4520.9,4520.8,0.001]
[1759727258204,13.00822229,4520.9,4520.8,0.001]
[1759727258416,13.48059974,4520.9,4520.8,0.001]
[1759727258738,7.57259787,4520.8,4520.7,0.001]
[1759727259032,10.75376041,4520.8,4520.7,0.001]
[1759727259231,8.85266041,4520.8,4520.7,0.001]
[1759727259702,10.08266041,4520.8,4520.7,0.001]
[1759727259903,10.86291875,4520.8,4520.7,0.001]
[1759727261030,15.29298765,4520.8,4520.7,0.001]
[1759727261536,14.8206102,4520.8,4520.7,0.001]
[1759727262400,16.0506102,4520.8,4520.7,0.001]
[1759727263709,17.2806102,4520.8,4520.7,0.001]
[1759727264059,14.2544102,4520.8,4520.7,0.001]
[1759727264406,17.3910102,4520.8,4520.7,0.001]
[1759727265202,18.6210102,4520.8,4520.7,0.001]
[1759727266435,18.6210102,4520.8,4520.4,1e-08]
[1759727266436,8.44581357,4520.5,4520.4,1e-08]
[1759727266637,13.39538446,4520.5,4520.4,1e-08]
[1759727266825,14.29190642,4520.5,4520.4,1e-08]
[1759727267434,14.29190642,4520.5,4517.3,0.01]
[1759727267435,0.6336,4520.2,4517.3,0.01]
[1759727267636,2.21311268,4518.6,4517.7,0.4692]
[1759727267805,2.503,4518.5,4517.7,0.4692]
[1759727268007,4.71614477,4518.5,4517.7,0.4692]
[1759727268205,2.41721334,4518.4,4517.7,0.4692]
[1759727268438,2.70702542,4518.3,4517.7,0.4692]
[1759727268606,0.20402542,4518.2,4517.0,0.2]
[1759727268806,2.503,4518.1,4517.7,0.4692]
[1759727269032,2.503,4518.1,4517.8,0.4692]
[1759727269240,2.97461735,4518.1,4517.0,0.2]
[1759727269535,4.20461735,4518.1,4517.1,0.4692]
[1759727270743,1.23,4518.1,4517.2,2.21376073]
[1759727270948,1.23,4518.1,4517.3,0.4692]
[1759727270949,2.503,4518.0,4517.3,0.4692]
[1759727272548,3.733,4518.0,4517.3,0.4692]
[1759727273272,4.3523,4518.0,4517.3,0.4692]
[1759727273933,5.5823,4518.0,4517.3,0.4692]
[1759727275233,3.0793,4518.0,4517.3,0.4692]
[1759727275439,2.504,4517.9,4517.3,0.4692]
[1759727276867,3.734,4517.9,4517.3,0.4692]
[1759727277570,0.1104,4517.4,4517.3,0.4692]
[1759727277734,2.6144,4517.4,4517.3,0.4692]
[1759727278366,3.8444,4517.4,4517.3,0.4692]
[1759727279738,5.0744,4517.4,4517.3,0.4692]
[1759727280466,5.0744,4517.4,4517.1,0.001]
[1759727280839,5.0744,4517.4,4517.2,0.4692]
[1759727281171,6.3044,4517.4,4517.3,0.4692]
[1759727281469,6.93484,4517.4,4517.1,0.001]
[1759727281689,2.504,4517.3,4517.2,0.4692]
[1759727282166,3.8004,4517.4,4517.2,0.4692]
[1759727282333,3.734,4517.3,4517.2,0.4692]
[1759727282533,3.734,4517.3,4517.1,0.001]
[1759727283669,3.734,4517.3,4517.1,0.4611]
[1759727283839,4.964,4517.3,4517.1,0.4611]
[1759727284367,4.964,4517.3,4517.1,0.001]
[1759727284568,1.08062943,4517.2,4517.1,0.001]
[1759727284969,1.50652943,4517.2,4517.1,0.001]
[1759727285374,2.73652943,4517.2,4517.1,0.001]
[1759727285674,2.31062943,4517.2,4517.1,0.001]
[1759727285850,2.73652943,4517.2,4517.1,0.001]
[1759727286751,3.96652943,4517.2,4517.1,0.001]
[1759727287172,3.5407674,4517.2,4517.1,0.001]
[1759727287376,6.0447674,4517.2,4517.1,0.001]
[1759727287753,3.5407674,4517.2,4517.1,0.001]
[1759727287953,6.0447674,4517.2,4517.1,0.001]
[1759727288165,7.2747674,4517.2,4517.1,0.001]
[1759727288479,7.7006993,4517.2,4517.1,0.001]
[1759727288667,5.1966993,4517.2,4517.1,0.001]
[1759727288868,7.2747993,4517.2,4517.1,0.001]
[1759727289449,8.5047993,4517.2,4517.1,0.001]
[1759727290751,9.7347993,4517.2,4517.1,0.001]
[1759727291960,10.9647993,4517.2,4517.1,0.001]
[1759727292779,8.4607993,4517.2,4517.1,0.4611]
[1759727292980,10.9647993,4517.2,4517.1,0.4611]
[1759727293181,7.5843593,4517.2,4517.1,0.4611]
[1759727293379,11.4287593,4517.2,4517.1,0.4611]
[1759727294664,12.6587593,4517.2,4517.1,0.4611]
[1759727295365,10.1547593,4517.2,4517.1,0.4611]
[1759727295566,12.6587593,4517.2,4517.1,0.4611]
[1759727296217,13.8887593,4517.2,4517.1,0.4611]
[1759727297589,15.1187593,4517.2,4517.1,0.4611]
[1759727298868,16.3487593,4517.2,4517.1,0.4611]
[1759727299268,13.8447593,4517.2,4517.1,0.001]
[1759727299494,16.3487593,4517.2,4517.1,0.001]
[1759727299791,18.51725111,4517.2,4517.1,0.001]
[1759727300303,19.74725111,4517.2,4517.1,0.001]
[1759727301505,20.97725111,4517.2,4517.1,0.001]
[1759727301896,18.8087593,4517.2,4517.1,0.4611]
[1759727302406,18.8087593,4517.2,4517.1,0.001]
[1759727302573,19.2346593,4517.2,4517.1,0.001]
[1759727302974,20.4646593,4517.2,4517.1,0.001]
[1759727304603,21.6946593,4517.2,4517.1,0.001]
[1759727304779,23.43725111,4517.2,4517.1,0.001]
[1759727304978,26.54929056,4517.2,4517.1,0.001]
[1759727305193,2.21380974,4517.1,4517.0,0.2]
[1759727305515,2.41816904,4517.1,4517.0,0.2]
[1759727305681,0.6302593,4517.1,4517.0,0.2]
[1759727305881,6.24256085,4517.1,4517.0,0.2]
[1759727306077,4.02875111,4517.1,4517.0,0.2]
[1759727306281,6.21825111,4517.1,4517.0,0.2]
[1759727307210,7.44825111,4517.1,4517.0,0.2]
[1759727307649,9.84825111,4517.1,4517.0,0.2]
[1759727308540,7.34325111,4517.1,4517.0,0.2]
[1759727308743,11.07825111,4517.1,4517.0,0.2]
[1759727308923,8.57325111,4517.1,4517.0,0.2]
[1759727309419,11.07825111,4517.1,4517.0,0.2]
[1759727310033,12.30825111,4517.1,4517.0,0.2]
[1759727310617,9.80325111,4517.1,4517.0,0.2]
[1759727310843,12.30825111,4517.1,4517.0,0.2]
[1759727311045,9.80325111,4517.1,4517.0,0.2]
[1759727311279,12.30825111,4517.1,4517.0,0.2]
[1759727311448,13.53825111,4517.1,4517.0,0.2]
[1759727312050,13.53825111,4517.1,4517.0,0.201]
[1759727312557,11.13825111,4517.1,4517.0,0.201]
[1759727312959,12.36825111,4517.1,4517.0,0.201]
[1759727313740,9.86325111,4517.1,4517.0,0.201]
[1759727314058,12.36825111,4517.1,4517.0,0.201]
[1759727314559,14.02415111,4517.1,4517.0,0.201]
[1759727314734,11.51915111,4517.1,4517.0,0.201]
[1759727314933,13.59908373,4517.1,4517.0,0.201]
[1759727315136,11.09408373,4517.1,4517.0,0.201]
[1759727315337,13.59908373,4517.1,4517.0,0.201]
[1759727315746,14.82908373,4517.1,4517.0,0.201]
[1759727315950,17.65498373,4517.1,4517.0,0.201]
[1759727316255,18.28858373,4517.1,4517.0,0.201]
[1759727316617,20.50239347,4517.1,4517.0,0.201]
[1759727316817,18.28858373,4517.1,4517.0,0.201]
[1759727317261,19.51858373,4517.1,4517.0,0.201]
[1759727318556,20.74858373,4517.1,4517.0,0.201]
[1759727319832,17.18408373,4517.1,4517.0,0.201]
[1759727320023,18.75059192,4517.1,4517.0,0.6303]
[1759727320639,16.24559192,4517.1,4517.0,0.6303]
[1759727320844,18.75059192,4517.1,4517.0,0.6303]
[1759727321259,16.24559192,4517.1,4517.0,0.6303]
[1759727321435,19.98059192,4517.1,4517.0,0.6303]
[1759727321641,22.14908373,4517.1,4517.0,0.6303]
[1759727322747,23.37908373,4517.1,4517.0,0.6303]
[1759727323146,20.87408373,4517.1,4517.0,0.6303]
[1759727323473,23.37908373,4517.1,4517.0,0.6303]
[1759727323770,20.87408373,4517.1,4517.0,0.6303]
[1759727324141,22.10408373,4517.1,4517.0,0.6303]
[1759727324344,24.60908373,4517.1,4517.0,0.6303]
[1759727324667,22.10408373,4517.1,4517.0,0.6303]
[1759727324847,24.60908373,4517.1,4517.0,0.6303]
[1759727325471,25.83908373,4517.1,4517.0,0.6303]
[1759727326061,25.83908373,4517.1,4517.0,0.201]
[1759727326961,24.56408373,4517.1,4517.0,0.201]
[1759727327267,27.06908373,4517.1,4517.0,0.201]
[1759727327653,24.56408373,4517.1,4517.0,0.201]
[1759727327854,27.06908373,4517.1,4517.0,0.201]
[1759727328459,24.56408373,4517.1,4517.0,0.201]
[1759727328770,28.29908373,4517.1,4517.0,0.201]
[1759727329471,28.30108373,4517.1,4517.0,0.201]
[1759727329671,25.79608373,4517.1,4517.0,0.6303]
[1759727329873,28.30108373,4517.1,4517.0,0.6303]
[1759727330043,29.53108373,4517.1,4517.0,0.201]
[1759727330778,29.53108373,4517.1,4517.0,0.6303]
[1759727331570,30.76108373,4517.1,4517.0,0.6303]
[1759727332158,30.75796432,4517.1,4517.0,0.6303]
[1759727332969,31.98796432,4517.1,4517.0,0.6303]
[1759727334457,33.21796432,4517.1,4517.0,0.6303]
[1759727334983,30.71296432,4517.1,4517.0,0.201]
[1759727335187,33.21796432,4517.1,4517.0,0.6303]
[1759727335657,34.44796432,4517.1,4517.0,0.6303]
[1759727336087,31.94296432,4517.1,4517.0,0.6303]
[1759727336281,34.44796432,4517.1,4517.0,0.6303]
[1759727337183,34.44796432,4517.1,4517.0,0.201]
[1759727337386,35.67796432,4517.1,4517.0,0.201]
[1759727338187,33.17296432,4517.1,4517.0,0.201]
[1759727338493,35.67796432,4517.1,4517.0,0.201]
[1759727338680,36.90796432,4517.1,4517.0,0.201]
[1759727339065,36.90796432,4517.1,4517.0,0.6303]
[1759727339268,34.73947251,4517.1,4517.0,0.6303]
[1759727339468,34.73947251,4517.1,4517.0,0.201]
[1759727339970,35.96947251,4517.1,4517.0,0.201]
[1759727340170,33.56947251,4517.1,4517.0,0.201]
[1759727341378,34.79947251,4517.1,4517.0,0.201]
[1759727341997,32.29447251,4517.1,4517.0,0.201]
[1759727342203,34.79947251,4517.1,4517.0,0.201]
[1759727342672,36.02947251,4517.1,4517.0,0.201]